fUST/lending_fUST_20240322
["ID","MTS","AMOUNT","RATE_DAILY","PERIOD"]
[320043403,1711111847781,-500.0,0.00027945,2]
[320043404,1711111847791,-871.84,0.00027945,2]
[320043405,1711111847800,-500.0,0.00027945,2]
[320043406,1711111847810,-500.0,0.00027945,2]
[320043407,1711111847819,-500.0,0.00027945,2]
[320043408,1711111847829,-500.0,0.00027945,2]
[320043409,1711111847839,-500.0,0.00027945,2]
[320043410,1711111847848,-1479.79,0.00027945,2]
[320043411,1711111847857,-425.394987,0.00027945,2]
[320043412,1711111847866,-425.394987,0.00027945,2]
[320043413,1711111847875,-425.394987,0.00027945,2]
[320043414,1711111847884,-425.394987,0.00027945,2]
[320043415,1711111847893,-500.0,0.00027945,2]
[320043416,1711111847902,-425.394987,0.00027945,2]
[320043417,1711111847911,-425.394987,0.00027945,2]
[320043418,1711111847919,-425.394987,0.00027945,2]
[320043419,1711111847928,-425.394987,0.00027945,2]
[320043420,1711111847937,-151.0,0.00027945,2]
[320043421,1711111847946,-151.0,0.00027945,2]
[320043422,1711111847955,-940.37,0.00027945,2]
[320043423,1711111847964,-151.0,0.00027945,2]
[320043424,1711111847973,-151.870127,0.00027945,2]
[320043425,1711111847982,-4303.45,0.00027945,2]
[320043426,1711111847990,-500.0,0.00027945,2]
[320043427,1711111848000,-500.0,0.00027945,2]
[320043428,1711111848009,-500.0,0.00027945,2]
[320043429,1711111848017,-500.0,0.00027945,2]
[320043430,1711111848026,-500.0,0.00027945,2]
[320043431,1711111848035,-500.0,0.00027945,2]
[320043432,1711111848044,-500.0,0.00027945,2]
[320043433,1711111848053,-632.84,0.00027945,2]
[320043434,1711111848062,-500.0,0.00027945,2]
[320043435,1711111848071,-504.94,0.00027945,2]
[320043436,1711111848080,-500.0,0.00027945,2]
[320043437,1711111848089,-728.64,0.00027945,2]
[320043438,1711111848098,-400.3269845,0.00027945,2]
[320043439,1711111848107,-500.0,0.00027945,2]
[320043440,1711111848116,-500.0,0.00027945,2]
[320043441,1711111848125,-503.15770438,0.00027945,2]
[320043442,1711111848135,-500.0,0.00027945,2]
[320043443,1711111848144,-500.0,0.00027945,2]
[320043444,1711111848153,-519.63,0.00027945,2]
[320043445,1711111848162,-500.0,0.00027945,2]
[320043446,1711111848172,-500.0,0.00027945,2]
[320043447,1711111848182,-500.0,0.00027945,2]
[320043448,1711111848191,-586.56,0.00027945,2]
[320043449,1711111848200,-500.0,0.00027945,2]
[320043450,1711111848210,-500.0,0.00027945,2]
[320043451,1711111848219,-500.0,0.00027945,2]
[320043452,1711111848229,-500.0,0.00027945,2]
[320043453,1711111848238,-500.0,0.00027945,2]
[320043454,1711111848247,-500.0,0.00027945,2]
[320043455,1711111848255,-882.68,0.00027945,2]
[320043456,1711111848264,-500.0,0.00027945,2]
[320043457,1711111848273,-2501.026139,0.00027945,2]
[320043458,1711111848282,-2501.026139,0.00027945,2]
[320043459,1711111848292,-500.0,0.00027945,2]
[320043460,1711111848301,-500.0,0.00027945,2]
[320043461,1711111848311,-500.0,0.00027945,2]
[320043462,1711111848320,-2501.026139,0.00027945,2]
[320043463,1711111848330,-2501.026139,0.00027945,2]
[320043464,1711111848339,-2501.026139,0.00027945,2]
[320043465,1711111848349,-2501.026139,0.00027945,2]
[320043466,1711111848358,-2501.026139,0.00027945,2]
[320043467,1711111848368,-2501.026139,0.00027945,2]
[320043468,1711111848377,-500.0,0.00027945,2]
[320043469,1711111848386,-500.0,0.00027945,2]
[320043470,1711111848395,-500.0,0.00027945,2]
[320043471,1711111848405,-1163.15,0.00027945,2]
[320043472,1711111848414,-1593.041834,0.00027945,2]
[320043473,1711111848423,-1593.041834,0.00027945,2]
[320043474,1711111848432,-1593.041834,0.00027945,2]
[320043475,1711111848441,-1593.041834,0.00027945,2]
[320043476,1711111848450,-500.0,0.00027945,2]
[320043477,1711111848459,-646.16715937,0.00027945,2]
[320043478,1711111848468,-1593.041834,0.00027945,2]
[320043479,1711111848479,-1593.041834,0.00027945,2]
[320043480,1711111848487,-1593.041834,0.00027945,2]
[320043481,1711111848498,-1593.041834,0.00027945,2]
[320043482,1711111848509,-500.0,0.00027945,2]
[320043483,1711111848518,-500.0,0.00027945,2]
[320043484,1711111848528,-516.59,0.00027945,2]
[320043485,1711111848538,-500.0,0.00027945,2]
[320043486,1711111848547,-500.0,0.00027945,2]
[320043487,1711111848557,-627.89,0.00027945,2]
[320043488,1711111848567,-500.0,0.00027945,2]
[320043489,1711111848577,-500.0,0.00027945,2]
[320043490,1711111848588,-500.0,0.00027945,2]
[320043491,1711111848597,-500.0,0.00027945,2]
[320043492,1711111848607,-151.0,0.00027945,2]
[320043493,1711111848616,-151.0,0.00027945,2]
[320043494,1711111848625,-151.0,0.00027945,2]
[320043495,1711111848634,-151.0,0.00027945,2]
[320043496,1711111848643,-156.351955,0.00027945,2]
[320043497,1711111848652,-500.0,0.00027945,2]
[320043498,1711111848661,-500.0,0.00027945,2]
[320043499,1711111848671,-500.0,0.00027945,2]
[320043500,1711111848681,-500.0,0.00027945,2]
[320043501,1711111848690,-500.0,0.00027945,2]
[320043502,1711111848699,-604.14724391,0.00027945,2]
[320043503,1711111848708,-500.0,0.00027945,2]
[320043504,1711111848718,-500.0,0.00027945,2]
[320043505,1711111848728,-593.01,0.00027945,2]
[320043506,1711111848737,-500.0,0.00027945,2]
[320043507,1711111848747,-500.0,0.00027945,2]
[320043508,1711111848756,-500.0,0.00027945,2]
[320043509,1711111848765,-500.0,0.00027945,2]
[320043510,1711111848774,-501.85309535,0.00027945,2]
[320043511,1711111848784,-543.78,0.00027945,2]
[320043512,1711111848793,-500.0,0.00027945,2]
[320043513,1711111848909,-500.0,0.00027945,2]
[320043514,1711111848919,-500.0,0.00027945,2]
[320043515,1711111848928,-680.450779,0.00027945,2]
[320043516,1711111848938,-500.0,0.00027945,2]
[320043517,1711111848946,-680.450779,0.00027945,2]
[320043518,1711111848956,-593.17,0.00027945,2]
[320043519,1711111848967,-680.450779,0.00027945,2]
[320043520,1711111848979,-946.09,0.00027945,2]
[320043521,1711111848990,-680.450779,0.00027945,2]
[320043522,1711111848999,-500.0,0.00027945,2]
[320043523,1711111849009,-680.450779,0.00027945,2]
[320043524,1711111849018,-680.450779,0.00027945,2]
[320043525,1711111849028,-680.450779,0.00027945,2]
[320043526,1711111849037,-680.450779,0.00027945,2]
[320043527,1711111849046,-2447.47,0.00027945,2]
[320043528,1711111849056,-680.450779,0.00027945,2]
[320043529,1711111849065,-680.450779,0.00027945,2]
[320043530,1711111849074,-500.0,0.00027945,2]
[320043531,1711111849083,-500.0,0.00027945,2]
[320043532,1711111849092,-151.0,0.00027945,2]
[320043533,1711111849101,-151.0,0.00027945,2]
[320043534,1711111849110,-237.982285,0.00027945,2]
[320043535,1711111849120,-500.0,0.00027945,2]
[320043536,1711111849129,-500.0,0.00027945,2]
[320043537,1711111849138,-560.61,0.00027945,2]
[320043539,1711111849148,-2700.82,0.00027945,2]
[320043540,1711111849157,-500.0,0.00027945,2]
[320043541,1711111849167,-629.28539354,0.00027945,2]
[320043542,1711111849177,-151.0,0.00027945,2]
[320043543,1711111849186,-151.0,0.00027945,2]
[320043544,1711111849196,-151.0,0.00027945,2]
[320043545,1711111849205,-151.0,0.00027945,2]
[320043546,1711111849214,-2015.68,0.00027945,2]
[320043547,1711111849224,-2908.47,0.00027945,2]
[320043548,1711111849234,-151.0,0.00027945,2]
[320043549,1711111849243,-151.0,0.00027945,2]
[320043550,1711111849253,-151.0,0.00027945,2]
[320043551,1711111849263,-172.575319,0.00027945,2]
[320043552,1711111849273,-12394.08,0.00027945,2]
[320043553,1711111849283,-500.0,0.00027945,2]
[320043554,1711111849293,-500.0,0.00027945,2]
[320043555,1711111849302,-500.0,0.00027945,2]
[320043556,1711111849312,-2967.04,0.00027945,2]
[320043557,1711111849322,-3908.24,0.00027945,2]
[320043558,1711111849331,-500.0,0.00027945,2]
[320043559,1711111849340,-444.15485341,0.00027945,2]
[320043560,1711111849350,-500.0,0.00027945,2]
[320043561,1711111849360,-153.555245,0.00027945,2]
[320043562,1711111849369,-153.555245,0.00027945,2]
[320043563,1711111849379,-153.555245,0.00027945,2]
[320043564,1711111849389,-500.0,0.00027945,2]
[320043565,1711111849399,-153.555245,0.00027945,2]
[320043566,1711111849408,-153.555245,0.00027945,2]
[320043567,1711111849418,-500.0,0.00027945,2]
[320043568,1711111849427,-500.0,0.00027945,2]
[320043569,1711111849437,-153.555245,0.00027945,2]
[320043570,1711111849446,-153.555245,0.00027945,2]
[320043571,1711111849456,-153.555245,0.00027945,2]
[320043572,1711111849465,-153.555245,0.00027945,2]
[320043573,1711111849475,-153.555245,0.00027945,2]
[320043574,1711111849484,-500.0,0.00027945,2]
[320043575,1711111849494,-501.12406937,0.00027945,2]
[320043576,1711111849505,-382.7104626,0.00027945,2]
[320043577,1711111849515,-500.0,0.00027945,2]
[320043578,1711111849524,-500.0,0.00027945,2]
[320043579,1711111849533,-7010.86,0.00027945,2]
[320043580,1711111849543,-3562.59,0.00027945,2]
[320043581,1711111849552,-500.0,0.00027945,2]
[320043582,1711111849561,-500.0,0.00027945,2]
[320043583,1711111849570,-5003.73,0.00027945,2]
[320043584,1711111849579,-798.72,0.00027945,2]
[320043585,1711111849590,-1138.64,0.00027945,2]
[320043586,1711111849600,-459.985919,0.00027945,2]
[320043587,1711111849609,-459.985919,0.00027945,2]
[320043588,1711111849619,-459.985919,0.00027945,2]
[320043589,1711111849628,-459.985919,0.00027945,2]
[320043590,1711111849637,-459.985919,0.00027945,2]
[320043591,1711111849647,-620.82,0.00027945,2]
[320043592,1711111849656,-500.0,0.00027945,2]
[320043593,1711111849665,-459.985919,0.00027945,2]
[320043594,1711111849674,-459.985919,0.00027945,2]
[320043595,1711111849684,-500.0,0.00027945,2]
[320043596,1711111849693,-459.985919,0.00027945,2]
[320043597,1711111849702,-459.985919,0.00027945,2]
[320043598,1711111849711,-459.985919,0.00027945,2]
[320043599,1711111849720,-674.43,0.00027945,2]
[320043600,1711111849731,-526.87612181,0.00027945,2]
[320043601,1711111849740,-500.0,0.00027945,2]
[320043602,1711111849749,-500.0,0.00027945,2]
[320043603,1711111849758,-329.43104633,0.00027945,2]
[320043604,1711111849768,-28754.89,0.00027945,2]
[320043605,1711111849777,-500.0,0.00027945,2]
[320043606,1711111849786,-3444.81,0.00027945,2]
[320043607,1711111849795,-749.25,0.00027945,2]
[320043608,1711111849804,-500.0,0.00027945,2]
[320043609,1711111849814,-2023.32,0.00027945,2]
[320043610,1711111849824,-501.81464032,0.00027945,2]
[320043611,1711111849833,-500.0,0.00027945,2]
[320043612,1711111849843,-500.0,0.00027945,2]
[320043613,1711111849852,-1405.19,0.00027945,2]
[320043614,1711111849861,-763.48,0.00027945,2]
[320043615,1711111849871,-757.09,0.00027945,2]
[320043616,1711111849880,-7621.78,0.00027945,2]
[320043617,1711111849889,-500.0,0.00027945,2]
[320043618,1711111849898,-500.0,0.00027945,2]
[320043619,1711111849908,-500.0,0.00027945,2]
[320043620,1711111849917,-500.0,0.00027945,2]
[320043621,1711111849926,-1000.0,0.00027945,2]
[320043622,1711111849935,-500.0,0.00027945,2]
[320043623,1711111849944,-2763.71,0.00027945,2]
[320043624,1711111849953,-500.0,0.00027945,2]
[320043625,1711111849963,-500.0,0.00027945,2]
[320043626,1711111849972,-501.66255192,0.00027945,2]
[320043627,1711111849983,-500.0,0.00027945,2]
[320043628,1711111849992,-500.0,0.00027945,2]
[320043629,1711111850001,-500.0,0.00027945,2]
[320043630,1711111850011,-535.08,0.00027945,2]
[320043631,1711111850021,-500.0,0.00027945,2]
[320043632,1711111850031,-763.4,0.00027945,2]
[320043633,1711111850041,-500.0,0.00027945,2]
[320043634,1711111850051,-500.0,0.00027945,2]
[320043635,1711111850060,-500.0,0.00027945,2]
[320043636,1711111850070,-500.0,0.00027945,2]
[320043637,1711111850080,-632.84,0.00027945,2]
[320043638,1711111850091,-500.0,0.00027945,2]
[320043639,1711111850101,-500.0,0.00027945,2]
[320043640,1711111850112,-500.0,0.00027945,2]
[320043641,1711111850123,-3951.14,0.00027945,2]
[320043642,1711111850134,-500.0,0.00027945,2]
[320043643,1711111850144,-500.0,0.00027945,2]
[320043644,1711111850154,-500.0,0.00027945,2]
[320043645,1711111850164,-1143.78,0.00027945,2]
[320043646,1711111850174,-500.0,0.00027945,2]
[320043647,1711111850184,-500.0,0.00027945,2]
[320043648,1711111850194,-500.0,0.00027945,2]
[320043649,1711111850204,-487.48298215,0.00027945,2]
[320043650,1711111850214,-153.34257304,0.00027945,2]
[320043651,1711111850225,-500.0,0.00027945,2]
[320043652,1711111850235,-500.0,0.00027945,2]
[320043653,1711111850244,-500.0,0.00027945,2]
[320043654,1711111850254,-500.0,0.00027945,2]
[320043655,1711111850264,-500.0,0.00027945,2]
[320043656,1711111850273,-1472.91,0.00027945,2]
[320043657,1711111850282,-500.0,0.00027945,2]
[320043658,1711111850292,-500.0,0.00027945,2]
[320043659,1711111850301,-500.0,0.00027945,2]
[320043660,1711111850310,-500.0,0.00027945,2]
[320043661,1711111850320,-39504.62,0.00027945,2]
[320043662,1711111850329,-483.98194778,0.00027945,2]
[320043663,1711111850339,-500.0,0.00027945,2]
[320043664,1711111850348,-151.0,0.00027945,2]
[320043665,1711111850357,-500.0,0.00027945,2]
[320043666,1711111850366,-151.0,0.00027945,2]
[320043667,1711111850375,-151.0,0.00027945,2]
[320043668,1711111850384,-500.0,0.00027945,2]
[320043669,1711111850393,-151.0,0.00027945,2]
[320043670,1711111850485,-151.0,0.00027945,2]
[320043671,1711111850495,-151.0,0.00027945,2]
[320043672,1711111850504,-151.0,0.00027945,2]
[320043673,1711111850517,-151.0,0.00027945,2]
[320043674,1711111850527,-176.241644,0.00027945,2]
[320043675,1711111850538,-500.0,0.00027945,2]
[320043676,1711111850548,-501.1,0.00027945,2]
[320043677,1711111850558,-2677.19,0.00027945,2]
[320043678,1711111850567,-3007.49,0.00027945,2]
[320043679,1711111850577,-1327.74,0.00027945,2]
[320043680,1711111850588,-7203.91,0.00027945,2]
[320043681,1711111850598,-3691.34,0.00027945,2]
[320043682,1711111850608,-500.0,0.00027945,2]
[320043683,1711111850619,-500.0,0.00027945,2]
[320043684,1711111850629,-37676.17,0.00027945,2]
[320043685,1711111850639,-569.34,0.00027945,2]
[320043686,1711111850648,-500.0,0.00027945,2]
[320043687,1711111850658,-746.78,0.00027945,2]
[320043688,1711111850668,-500.0,0.00027945,2]
[320043689,1711111850678,-500.0,0.00027945,2]
[320043690,1711111850687,-236.88442558,0.00027945,2]
[320043691,1711111850697,-317.49940684,0.00027945,2]
[320043692,1711111850707,-2250.74,0.00027945,2]
[320043693,1711111850716,-500.0,0.00027945,2]
[320043694,1711111850730,-225.13757817,0.00027945,2]
[320043695,1711111850740,-500.69308785,0.00027945,2]
[320043696,1711111850751,-526.24,0.00027945,2]
[320043697,1711111850760,-500.0,0.00027945,2]
[320043698,1711111850770,-3013.87,0.00027945,2]
[320043699,1711111850779,-8462.19,0.00027945,2]
[320043700,1711111850790,-500.0,0.00027945,2]
[320043701,1711111850800,-500.0,0.00027945,2]
[320043702,1711111850809,-500.0,0.00027945,2]
[320043703,1711111850819,-500.0,0.00027945,2]
[320043704,1711111850829,-203.86620209,0.00027945,2]
[320043705,1711111850839,-887.09,0.00027945,2]
[320043706,1711111850849,-501.47094557,0.00027945,2]
[320043707,1711111850859,-500.0,0.00027945,2]
[320043708,1711111850869,-500.0,0.00027945,2]
[320043709,1711111850880,-943.95,0.00027945,2]
[320043710,1711111850889,-500.0,0.00027945,2]
[320043711,1711111850899,-500.0,0.00027945,2]
[320043712,1711111850909,-151.0226534,0.00027991,2]
[320043713,1711111850918,-250.52845927,0.00027991,2]
[320043714,1711111850929,-500.0,0.00028,5]
[320043715,1711111850938,-750.46630651,0.00028,2]
[320043716,1711111850948,-753.29276324,0.00028,2]
[320043717,1711111850958,-421.78993696,0.00028,2]
[320043718,1711111850967,-217.09563973,0.00028,2]
[320043719,1711111850980,-425.394987,0.00028,2]
[320043720,1711111850990,-425.394987,0.00028,2]
[320043721,1711111850999,-151.0,0.00028,2]
[320043722,1711111851009,-288.97103278,0.00028,2]
[320043723,1711111851020,-2000.0,0.00028,2]
[320043724,1711111851030,-206.155,0.00028002,2]
[320043725,1711111851040,-166.666666,0.00028038,2]
[320043726,1711111851050,-153.0,0.00028219,2]
[320043727,1711111851060,-302.0453068,0.00028461,4]
[320043728,1711111851070,-500.0,0.00028493,2]
[320043729,1711111851081,-501.24435643,0.00028493,2]
[320043730,1711111851091,-500.0,0.00028493,2]
[320043731,1711111851101,-500.0,0.00028493,2]
[320043732,1711111851111,-500.0,0.00028493,2]
[320043733,1711111851121,-500.0,0.00028493,2]
[320043734,1711111851131,-501.7055785,0.00028493,2]
[320043735,1711111851141,-500.0,0.00028493,2]
[320043736,1711111851150,-500.0,0.00028493,2]
[320043737,1711111851160,-500.0,0.00028493,2]
[320043738,1711111851169,-500.0,0.00028493,2]
[320043739,1711111851179,-500.0,0.00028493,2]
[320043740,1711111851188,-505.61047667,0.00028493,2]
[320043741,1711111851198,-500.0,0.00028493,2]
[320043742,1711111851208,-500.0,0.00028493,2]
[320043743,1711111851218,-1018.12,0.00028493,2]
[320043744,1711111851232,-500.0,0.00028493,2]
[320043745,1711111851242,-505.85828729,0.00028493,2]
[320043746,1711111851253,-540.48,0.00028493,2]
[320043747,1711111851263,-456.08148717,0.00028493,2]
[320043748,1711111851272,-500.0,0.00028493,2]
[320043749,1711111851282,-767.28,0.00028493,2]
[320043750,1711111851291,-500.0,0.00028493,2]
[320043751,1711111851300,-500.0,0.00028493,2]
[320043752,1711111851310,-500.0,0.00028493,2]
[320043753,1711111851320,-500.0,0.00028493,2]
[320043754,1711111851331,-192.26439724,0.00028493,2]
[320043755,1711111851340,-500.0,0.00028493,2]
[320043756,1711111851350,-500.0,0.00028493,2]
[320043757,1711111851360,-500.0,0.00028493,2]
[320043758,1711111851369,-500.0,0.00028493,2]
[320043759,1711111851379,-500.0,0.00028493,2]
[320043760,1711111851390,-500.0,0.00028493,2]
[320043761,1711111851400,-500.0,0.00028493,2]
[320043762,1711111851409,-501.95043624,0.00028493,2]
[320043763,1711111851419,-500.0,0.00028493,2]
[320043764,1711111851428,-500.0,0.00028493,2]
[320043765,1711111851438,-500.0,0.00028493,2]
[320043766,1711111851448,-500.0,0.00028493,2]
[320043767,1711111851458,-500.0,0.00028493,2]
[320043768,1711111851468,-500.0,0.00028493,2]
[320043769,1711111851482,-500.0,0.00028493,2]
[320043770,1711111851491,-500.0,0.00028493,2]
[320043771,1711111851515,-184.88759334,0.00028493,2]
[320043772,1711111851525,-500.0,0.00028493,2]
[320043773,1711111851534,-500.0,0.00028493,2]
[320043774,1711111851544,-500.0,0.00028493,2]
[320043775,1711111851555,-500.0,0.00028493,2]
[320043776,1711111851564,-500.0,0.00028493,2]
[320043777,1711111851574,-745.25,0.00028493,2]
[320043778,1711111851583,-500.0,0.00028493,2]
[320043779,1711111851593,-500.0,0.00028493,2]
[320043780,1711111851602,-500.0,0.00028493,2]
[320043781,1711111851611,-273.97076677,0.00028493,2]
[320043782,1711111851621,-1050.15,0.00028493,2]
[320043783,1711111851631,-500.0,0.00028493,2]
[320043784,1711111851641,-500.0,0.00028493,30]
[320043785,1711111851651,-571.60678716,0.00028493,2]
[320043786,1711111851662,-822.63,0.00028493,2]
[320043787,1711111851672,-521.77,0.00028493,2]
[320043788,1711111851682,-500.0,0.00028493,2]
[320043789,1711111851693,-500.0,0.00028493,2]
[320043790,1711111851703,-500.0,0.00028493,2]
[320043791,1711111851713,-500.0,0.00028493,2]
[320043792,1711111851723,-500.0,0.00028493,2]
[320043793,1711111851736,-500.0,0.00028493,2]
[320043794,1711111851746,-500.0,0.00028493,2]
[320043795,1711111851757,-151.0,0.00028493,2]
[320043796,1711111851767,-438.94419608,0.00028493,2]
[320043797,1711111851778,-500.0,0.00028493,2]
[320043798,1711111851788,-500.0,0.00028493,2]
[320043799,1711111851797,-377.76915691,0.00028493,2]
[320043800,1711111851808,-822.04,0.00028493,2]
[320043801,1711111851817,-500.0,0.00028493,2]
[320043802,1711111851827,-765.25,0.00028493,2]
[320043803,1711111851837,-500.0,0.00028493,2]
[320043804,1711111851847,-522.7,0.00028493,2]
[320043805,1711111851857,-500.0,0.00028493,2]
[320043806,1711111851867,-500.0,0.00028493,2]
[320043807,1711111851877,-500.0,0.00028493,2]
[320043808,1711111851887,-500.0,0.00028493,2]
[320043809,1711111851896,-500.0,0.00028493,2]
[320043810,1711111851906,-513.01126811,0.00028493,2]
[320043811,1711111851916,-500.0,0.00028493,2]
[320043812,1711111851925,-2819.12,0.00028493,2]
[320043813,1711111852010,-218.68846327,0.00028493,2]
[320043814,1711111852019,-500.0,0.00028493,2]
[320043815,1711111852029,-551.95,0.00028493,2]
[320043816,1711111852039,-1059.31,0.00028493,2]
[320043817,1711111852049,-1138.93,0.00028493,2]
[320043818,1711111852058,-500.0,0.00028493,2]
[320043819,1711111852068,-500.0,0.00028493,2]
[320043820,1711111852077,-500.0,0.00028493,2]
[320043821,1711111852087,-500.0,0.00028493,2]
[320043822,1711111852096,-500.0,0.00028493,2]
[320043823,1711111852106,-265.88553291,0.00028493,2]
[320043824,1711111852116,-1081.36,0.00028493,2]
[320043825,1711111852126,-500.0,0.00028493,2]
[320043826,1711111852136,-500.0,0.00028493,2]
[320043827,1711111852146,-1909.77,0.00028493,2]
[320043828,1711111852156,-500.0,0.00028493,2]
[320043829,1711111852166,-500.0,0.00028493,2]
[320043830,1711111852176,-3328.14,0.00028493,2]
[320043831,1711111852186,-500.0,0.00028493,2]
[320043832,1711111852196,-500.0,0.00028493,2]
[320043833,1711111852206,-454.11801094,0.00028493,2]
[320043834,1711111852215,-500.0,0.00028493,2]
[320043835,1711111852224,-1933.42,0.00028493,2]
[320043836,1711111852236,-472.0217408,0.00028493,2]
[320043837,1711111852246,-697.43,0.00028493,2]
[320043838,1711111852256,-502.42850805,0.00028493,2]
[320043839,1711111852265,-2814.01,0.00028493,2]
[320043840,1711111852275,-609.02,0.00028493,2]
[320043841,1711111852284,-701.09,0.00028493,2]
[320043842,1711111852293,-500.0,0.00028493,2]
[320043843,1711111852303,-500.0,0.00028493,2]
[320043844,1711111852313,-2894.22,0.00028493,2]
[320043845,1711111852323,-500.0,0.00028493,2]
[320043846,1711111852333,-871.84,0.00028493,2]
[320043847,1711111852342,-500.0,0.00028493,2]
[320043848,1711111852352,-500.0,0.00028493,2]
[320043849,1711111852361,-500.0,0.00028493,2]
[320043850,1711111852371,-500.0,0.00028493,2]
[320043851,1711111852380,-500.0,0.00028493,2]
[320043852,1711111852390,-1479.79,0.00028493,2]
[320043853,1711111852399,-425.394987,0.00028493,2]
[320043854,1711111852409,-425.394987,0.00028493,2]
[320043855,1711111852418,-500.0,0.00028493,2]
[320043856,1711111852428,-425.394987,0.00028493,2]
[320043857,1711111852437,-425.394988,0.00028493,2]
[320043858,1711111852446,-940.37,0.00028493,2]
[320043859,1711111852456,-4303.45,0.00028493,2]
[320043860,1711111852465,-500.0,0.00028493,2]
[320043861,1711111852474,-500.0,0.00028493,2]
[320043862,1711111852485,-438.57940187,0.00028493,2]
[320043863,1711111852496,-500.0,0.00028493,2]
[320043864,1711111852505,-500.0,0.00028493,2]
[320043865,1711111852518,-500.0,0.00028493,2]
[320043866,1711111852528,-500.0,0.00028493,2]
[320043867,1711111852537,-632.84,0.00028493,2]
[320043868,1711111852548,-500.0,0.00028493,2]
[320043869,1711111852557,-504.94,0.00028493,2]
[320043870,1711111852566,-500.0,0.00028493,2]
[320043871,1711111852576,-728.64,0.00028493,2]
[320043872,1711111852586,-500.0,0.00028493,2]
[320043873,1711111852596,-500.0,0.00028493,2]
[320043874,1711111852604,-500.0,0.00028493,2]
[320043875,1711111852613,-500.0,0.00028493,2]
[320043876,1711111852622,-519.63,0.00028493,2]
[320043877,1711111852631,-500.0,0.00028493,2]
[320043878,1711111852640,-500.0,0.00028493,2]
[320043879,1711111852649,-500.0,0.00028493,2]
[320043880,1711111852658,-586.56,0.00028493,2]
[320043881,1711111852666,-500.0,0.00028493,2]
[320043882,1711111852676,-500.0,0.00028493,2]
[320043883,1711111852685,-500.0,0.00028493,2]
[320043884,1711111852694,-500.0,0.00028493,2]
[320043885,1711111852703,-500.0,0.00028493,2]
[320043886,1711111852712,-500.0,0.00028493,2]
[320043887,1711111852721,-882.68,0.00028493,2]
[320043888,1711111852732,-500.0,0.00028493,2]
[320043889,1711111852741,-166.08280078,0.00028493,2]
[320043890,1711111852750,-500.0,0.00028493,2]
[320043891,1711111852759,-557.96498043,0.00028493,2]
[320043892,1711111852768,-2501.026139,0.00028493,2]
[320043893,1711111852777,-2501.026139,0.00028493,2]
[320043894,1711111852787,-2501.026139,0.00028493,2]
[320043895,1711111852796,-2501.026145,0.00028493,2]
[320043896,1711111852805,-150.61649707,0.00028493,2]
[320043897,1711111852815,-500.0,0.00028493,2]
[320043898,1711111852825,-500.0,0.00028493,2]
[320043899,1711111852835,-1163.15,0.00028493,2]
[320043900,1711111852845,-1593.041834,0.00028493,2]
[320043901,1711111852855,-500.0,0.00028493,2]
[320043902,1711111852866,-1593.041834,0.00028493,2]
[320043903,1711111852875,-1593.041834,0.00028493,2]